fUST/lending_fUST_20250718
["ID","MTS","AMOUNT","RATE_DAILY","PERIOD"]
[372933105,1752813053282,-460.0,0.00017534,2]
[372933106,1752813053292,-460.0,0.00017534,2]
[372933107,1752813053302,-2489.82,0.00017534,2]
[372933108,1752813053312,-505.66,0.00017534,2]
[372933109,1752813053322,-2945.34,0.00017534,2]
[372933110,1752813053332,-460.0,0.00017534,2]
[372933111,1752813053341,-460.0,0.00017534,2]
[372933112,1752813053351,-460.0,0.00017534,2]
[372933113,1752813053360,-633.48,0.00017534,2]
[372933114,1752813053370,-460.0,0.00017534,2]
[372933115,1752813053380,-460.0,0.00017534,2]
[372933116,1752813053389,-1000.0,0.00017568,2]
[372933117,1752813053399,-1886.83589596,0.00017571,2]
[372933118,1752813053408,-500.0,0.00017573,2]
[372933119,1752813053422,-503.42127867,0.00017573,2]
[372933120,1752813053432,-500.13680173,0.00017573,2]
[372933121,1752813053441,-503.16684721,0.00017573,2]
[372933122,1752813053451,-500.0,0.00017573,2]
[372933123,1752813053461,-931.76,0.00017598,3]
[372933124,1752813053471,-465.88,0.00017598,3]
[372933125,1752813053480,-420.0,0.00017748,2]
[372933126,1752813053491,-460.0,0.00017808,2]
[372933127,1752813053501,-460.0,0.00017808,2]
[372933128,1752813053510,-450.57992044,0.00017808,2]
[372933129,1752813053520,-460.0,0.00017808,2]
[372933130,1752813053529,-272.16539942,0.00017808,2]
[372933131,1752813053539,-460.0,0.00017808,2]
[372933132,1752813053548,-460.0,0.00017808,2]
[372933133,1752813053557,-471.6876449,0.00017808,2]
[372933134,1752813053566,-460.0,0.00017808,2]
[372933135,1752813053576,-195.1347836,0.00017808,2]
[372933136,1752813053586,-460.0,0.00017808,2]
[372933137,1752813053595,-513.5,0.00017808,2]
[372933138,1752813053604,-567.04,0.00017808,2]
[372933139,1752813053614,-460.0,0.00017808,2]
[372933140,1752813053623,-210.26760973,0.00017808,2]
[372933141,1752813053634,-460.0,0.00017808,2]
[372933142,1752813053643,-460.0,0.00017808,2]
[372933143,1752813053653,-460.0,0.00017808,2]
[372933144,1752813053662,-460.0,0.00017808,2]
[372933145,1752813053672,-460.0,0.00017808,2]
[372933146,1752813053681,-460.0,0.00017808,2]
[372933147,1752813053691,-460.0,0.00017808,2]
[372933148,1752813053701,-460.0,0.00017808,2]
[372933149,1752813053710,-460.0,0.00017808,2]
[372933150,1752813053720,-777.35,0.00017808,2]
[372933151,1752813053730,-558.88,0.00017808,2]
[372933152,1752813053739,-460.0,0.00017808,2]
[372933153,1752813053748,-465.98545379,0.00017808,2]
[372933154,1752813053758,-460.0,0.00017808,2]
[372933155,1752813053767,-460.0,0.00017808,2]
[372933156,1752813053777,-460.0,0.00017808,2]
[372933157,1752813053787,-460.0,0.00017808,2]
[372933158,1752813053796,-460.0,0.00017808,2]
[372933159,1752813053806,-460.0,0.00017808,2]
[372933160,1752813053816,-460.0,0.00017808,2]
[372933161,1752813053825,-460.0,0.00017808,2]
[372933162,1752813053835,-460.0,0.00017808,2]
[372933163,1752813053844,-787.34,0.00017808,2]
[372933164,1752813053854,-337.76936132,0.00017808,2]
[372933165,1752813053864,-460.0,0.00017808,2]
[372933166,1752813053873,-245.85112974,0.00017808,2]
[372933167,1752813053883,-1702.85,0.00017808,2]
[372933168,1752813053892,-460.0,0.00017808,2]
[372933169,1752813053902,-460.0,0.00017808,2]
[372933170,1752813053911,-460.0,0.00017808,2]
[372933171,1752813053921,-547.71,0.00017808,2]
[372933172,1752813053930,-555.77,0.00017808,2]
[372933173,1752813053940,-460.0,0.00017808,2]
[372933174,1752813053951,-339.90034245,0.00017808,2]
[372933175,1752813053960,-229.60171099,0.00017808,2]
[372933176,1752813053970,-564.36845855,0.00017808,2]
[372933177,1752813053980,-535.54,0.00017808,2]
[372933178,1752813053989,-460.0,0.00017808,2]
[372933179,1752813053999,-460.0,0.00017808,2]
[372933180,1752813054009,-460.0,0.00017808,2]
[372933181,1752813054023,-1010.83,0.00017808,2]
[372933182,1752813054033,-460.0,0.00017808,2]
[372933183,1752813054043,-460.0,0.00017808,2]
[372933184,1752813054052,-335.43509946,0.00017808,2]
[372933185,1752813054062,-460.0,0.00017808,2]
[372933186,1752813054071,-560.37,0.00017808,2]
[372933187,1752813054081,-460.0,0.00017808,2]
[372933188,1752813054091,-460.0,0.00017808,2]
[372933189,1752813054100,-2738.5,0.00017808,2]
[372933190,1752813054109,-460.0,0.00017808,2]
[372933191,1752813054119,-460.0,0.00017808,2]
[372933192,1752813054128,-525.79,0.00017808,2]
[372933193,1752813054137,-460.0,0.00017808,2]
[372933194,1752813054147,-536.66,0.00017808,2]
[372933195,1752813054156,-460.0,0.00017808,2]
[372933196,1752813054166,-2535.91,0.00017808,2]
[372933197,1752813054175,-460.0,0.00017808,2]
[372933198,1752813054185,-3286.51,0.00017808,2]
[372933199,1752813054196,-513.61,0.00017808,2]
[372933200,1752813054206,-479.16,0.00017808,2]
[372933201,1752813054216,-460.0,0.00017808,2]
[372933202,1752813054226,-852.12,0.00017808,2]
[372933203,1752813054236,-1073.62,0.00017808,2]
[372933204,1752813054246,-460.0,0.00017808,2]
[372933205,1752813054256,-1477.28,0.00017808,2]
[372933206,1752813054265,-774.58,0.00017808,2]
[372933207,1752813054275,-460.0,0.00017808,2]
[372933208,1752813054284,-240.69895724,0.00017808,2]
[372933209,1752813054293,-638.51,0.00017808,2]
[372933210,1752813054303,-571.08,0.00017808,2]
[372933211,1752813054313,-1916.82,0.00017808,2]
[372933212,1752813054322,-460.0,0.00017808,2]
[372933213,1752813054331,-1136.96,0.00017808,2]
[372933214,1752813054340,-535.73719494,0.00017808,2]
[372933215,1752813054350,-460.0,0.00017808,2]
[372933216,1752813054359,-465.31300322,0.00017808,2]
[372933217,1752813054369,-646.05,0.00017808,2]
[372933218,1752813054378,-460.0,0.00017808,2]
[372933219,1752813054387,-460.0,0.00017808,2]
[372933220,1752813054397,-690.82,0.00017808,2]
[372933221,1752813054406,-460.0,0.00017808,2]
[372933222,1752813054420,-2756.34,0.00017808,2]
[372933223,1752813054430,-460.0,0.00017808,2]
[372933224,1752813054439,-1040.86,0.00017808,2]
[372933225,1752813054452,-467.3659585,0.00017808,2]
[372933226,1752813054462,-460.0,0.00017808,2]
[372933227,1752813054553,-460.0,0.00017808,2]
[372933228,1752813054563,-460.0,0.00017808,2]
[372933229,1752813054572,-467.14,0.00017808,2]
[372933230,1752813054582,-460.0,0.00017808,2]
[372933231,1752813054592,-4760.88,0.00017808,2]
[372933232,1752813054601,-472.26,0.00017808,2]
[372933233,1752813054610,-460.0,0.00017808,2]
[372933234,1752813054619,-570.06,0.00017808,2]
[372933235,1752813054628,-4406.26,0.00017808,2]
[372933236,1752813054637,-508.35,0.00017808,2]
[372933237,1752813054646,-472.91,0.00017808,2]
[372933238,1752813054656,-460.0,0.00017808,2]
[372933239,1752813054666,-460.0,0.00017808,2]
[372933240,1752813054675,-856.08,0.00017808,2]
[372933241,1752813054684,-487.92,0.00017808,2]
[372933242,1752813054695,-460.0,0.00017808,2]
[372933243,1752813054704,-460.0,0.00017808,2]
[372933244,1752813054714,-1340.97,0.00017808,2]
[372933245,1752813054723,-582.41,0.00017808,2]
[372933246,1752813054732,-2433.29,0.00017808,2]
[372933247,1752813054741,-1705.16,0.00017808,2]
[372933248,1752813054750,-460.0,0.00017808,2]
[372933249,1752813054759,-460.0,0.00017808,2]
[372933250,1752813054770,-460.0,0.00017808,2]
[372933251,1752813054779,-1722.56,0.00017808,2]
[372933252,1752813054788,-460.0,0.00017808,2]
[372933253,1752813054797,-460.0,0.00017808,2]
[372933254,1752813054806,-475.26756817,0.00017808,2]
[372933255,1752813054815,-460.0,0.00017808,2]
[372933256,1752813054825,-2489.82,0.00017808,2]
[372933257,1752813054834,-505.66,0.00017808,2]
[372933258,1752813054843,-2945.34,0.00017808,2]
[372933259,1752813054852,-460.0,0.00017808,2]
[372933260,1752813054862,-460.0,0.00017808,2]
[372933261,1752813054871,-460.0,0.00017808,2]
[372933262,1752813054880,-633.48,0.00017808,2]
[372933263,1752813054889,-460.0,0.00017808,2]
[372933264,1752813054898,-1500.0,0.00017868,2]
[372933265,1752813054907,-500.0,0.00017868,2]
[372933266,1752813054916,-500.0,0.00017873,2]
[372933267,1752813054927,-532.80144525,0.00017873,2]
[372933268,1752813054936,-500.0,0.00017873,2]
[372933269,1752813054946,-500.0,0.00017873,2]
[372933270,1752813054955,-500.0,0.00017873,2]
[372933271,1752813054964,-3222.00339136,0.00018,2]
[372933272,1752813054973,-215.63268315,0.00018037,2]
[372933273,1752813054984,-160.0,0.00018037,2]
[372933274,1752813054993,-160.0,0.0001804,2]
[372933275,1752813055003,-160.0,0.0001804,2]
[372933276,1752813055012,-160.0,0.0001804,2]
[372933277,1752813055021,-160.0,0.0001804,2]
[372933278,1752813055031,-160.0,0.0001804,2]
[372933279,1752813055040,-12610.43989422,0.0001804,2]
[372933280,1752813055050,-839.30593155,0.0001804,2]
[372933281,1752813055059,-230.89969799,0.0001804,2]
[372933282,1752813055068,-160.0,0.0001804,2]
[372933283,1752813055078,-476.25663856,0.0001804,2]
[372933284,1752813055087,-214.4881157,0.0001804,2]
[372933285,1752813055097,-525.75194068,0.0001804,2]
[372933286,1752813055107,-173.22790273,0.00018082,2]
[372933287,1752813055116,-460.0,0.00018082,2]
[372933288,1752813055126,-460.0,0.00018082,2]
[372933289,1752813055135,-460.0,0.00018082,2]
[372933290,1752813055148,-460.0,0.00018082,2]
[372933291,1752813055157,-513.5,0.00018082,2]
[372933292,1752813055167,-567.04,0.00018082,2]
[372933293,1752813055176,-460.0,0.00018082,2]
[372933294,1752813055185,-460.0,0.00018082,2]
[372933295,1752813055195,-460.0,0.00018082,2]
[372933296,1752813055205,-228.34029742,0.00018082,2]
[372933297,1752813055215,-460.0,0.00018082,2]
[372933298,1752813055225,-460.0,0.00018082,2]
[372933299,1752813055238,-460.0,0.00018082,2]
[372933300,1752813055247,-460.0,0.00018082,2]
[372933301,1752813055257,-460.0,0.00018082,2]
[372933302,1752813055267,-460.0,0.00018082,2]
[372933303,1752813055278,-777.35,0.00018082,2]
[372933304,1752813055288,-558.88,0.00018082,2]
[372933305,1752813055299,-460.0,0.00018082,2]
[372933306,1752813055308,-460.0,0.00018082,2]
[372933307,1752813055318,-460.0,0.00018082,2]
[372933308,1752813055329,-460.0,0.00018082,2]
[372933309,1752813055338,-460.0,0.00018082,2]
[372933310,1752813055348,-460.0,0.00018082,2]
[372933311,1752813055358,-520.02564319,0.00018082,2]
[372933312,1752813055367,-460.0,0.00018082,2]
[372933313,1752813055377,-460.0,0.00018082,2]
[372933314,1752813055387,-460.0,0.00018082,2]
[372933315,1752813055397,-787.34,0.00018082,2]
[372933316,1752813055411,-460.0,0.00018082,2]
[372933317,1752813055430,-1702.85,0.00018082,2]
[372933318,1752813055450,-460.0,0.00018082,2]
[372933319,1752813055460,-460.0,0.00018082,2]
[372933320,1752813055470,-187.85863546,0.00018082,2]
[372933321,1752813055480,-547.71,0.00018082,2]
[372933322,1752813055489,-555.77,0.00018082,2]
[372933323,1752813055498,-535.54,0.00018082,2]
[372933324,1752813055507,-460.0,0.00018082,2]
[372933325,1752813055518,-460.0,0.00018082,2]
[372933326,1752813055527,-460.0,0.00018082,2]
[372933327,1752813055537,-1010.83,0.00018082,2]
[372933328,1752813055547,-460.0,0.00018082,2]
[372933329,1752813055557,-460.0,0.00018082,2]
[372933330,1752813055567,-460.0,0.00018082,2]
[372933331,1752813055576,-560.37,0.00018082,2]
[372933332,1752813055586,-460.0,0.00018082,2]
[372933333,1752813055595,-460.0,0.00018082,2]
[372933334,1752813055605,-2738.5,0.00018082,2]
[372933335,1752813055615,-460.0,0.00018082,2]
[372933336,1752813055624,-460.0,0.00018082,2]
[372933337,1752813055634,-525.79,0.00018082,2]
[372933338,1752813055643,-460.0,0.00018082,2]
[372933339,1752813055653,-536.66,0.00018082,2]
[372933340,1752813055662,-460.0,0.00018082,2]
[372933341,1752813055672,-2535.91,0.00018082,2]
[372933342,1752813055681,-460.0,0.00018082,2]
[372933343,1752813055690,-3286.51,0.00018082,2]
[372933344,1752813055702,-513.61,0.00018082,2]
[372933345,1752813055712,-479.16,0.00018082,2]
[372933346,1752813055722,-460.0,0.00018082,2]
[372933347,1752813055731,-852.12,0.00018082,2]
[372933348,1752813055740,-1073.62,0.00018082,2]
[372933349,1752813055750,-460.0,0.00018082,2]
[372933350,1752813055760,-1477.28,0.00018082,2]
[372933351,1752813055769,-774.58,0.00018082,2]
[372933352,1752813055778,-460.0,0.00018082,2]
[372933353,1752813055788,-638.51,0.00018082,2]
[372933354,1752813055797,-571.08,0.00018082,2]
[372933355,1752813055807,-1916.82,0.00018082,2]
[372933356,1752813055816,-460.0,0.00018082,2]
[372933357,1752813055826,-1136.96,0.00018082,2]
[372933358,1752813055835,-460.0,0.00018082,2]
[372933359,1752813055845,-646.05,0.00018082,2]
[372933360,1752813055855,-460.0,0.00018082,2]
[372933361,1752813055864,-460.0,0.00018082,2]
[372933362,1752813055874,-690.82,0.00018082,2]
[372933363,1752813055883,-460.0,0.00018082,2]
[372933364,1752813055893,-2756.34,0.00018082,2]
[372933365,1752813055902,-460.0,0.00018082,2]
[372933366,1752813055912,-1040.86,0.00018082,2]
[372933367,1752813055921,-460.0,0.00018082,2]
[372933368,1752813055931,-460.0,0.00018082,2]
[372933369,1752813055940,-460.0,0.00018082,2]
[372933370,1752813055951,-467.14,0.00018082,2]
[372933371,1752813055960,-460.0,0.00018082,2]
[372933372,1752813055969,-4760.88,0.00018082,2]
[372933373,1752813055979,-472.26,0.00018082,2]
[372933374,1752813055989,-460.0,0.00018082,2]
[372933375,1752813055998,-570.06,0.00018082,2]
[372933376,1752813056008,-4406.26,0.00018082,2]
[372933377,1752813056017,-508.35,0.00018082,2]
[372933378,1752813056027,-472.91,0.00018082,2]
[372933379,1752813056037,-460.0,0.00018082,2]
[372933380,1752813056046,-460.0,0.00018082,2]
[372933381,1752813056059,-856.08,0.00018082,2]
[372933382,1752813056068,-487.92,0.00018082,2]
[372933383,1752813056151,-460.0,0.00018082,2]
[372933384,1752813056161,-460.0,0.00018082,2]
[372933385,1752813056170,-1340.97,0.00018082,2]
[372933386,1752813056179,-582.41,0.00018082,2]
[372933387,1752813056189,-2433.29,0.00018082,2]
[372933388,1752813056201,-1705.16,0.00018082,2]
[372933389,1752813056211,-460.0,0.00018082,2]
[372933390,1752813056220,-460.0,0.00018082,2]
[372933391,1752813056230,-460.0,0.00018082,2]
[372933392,1752813056239,-1722.56,0.00018082,2]
[372933393,1752813056249,-460.0,0.00018082,2]
[372933394,1752813056258,-460.0,0.00018082,2]
[372933395,1752813056267,-460.0,0.00018082,2]
[372933396,1752813056277,-2489.82,0.00018082,2]
[372933397,1752813056287,-505.66,0.00018082,2]
[372933398,1752813056297,-2945.34,0.00018082,2]
[372933399,1752813056306,-460.0,0.00018082,2]
[372933400,1752813056316,-460.0,0.00018082,2]
[372933401,1752813056326,-460.0,0.00018082,2]
[372933402,1752813056337,-633.48,0.00018082,2]
[372933403,1752813056346,-1000.0,0.00018121,2]
[372933404,1752813056356,-1886.83589596,0.00018188,2]
[372933405,1752813056367,-1665.3537634,0.0001824,2]
[372933406,1752813056377,-460.0,0.00018356,2]
[372933407,1752813056387,-460.0,0.00018356,2]
[372933408,1752813056397,-460.0,0.00018356,2]
[372933409,1752813056407,-460.0,0.00018356,2]
[372933410,1752813056418,-513.5,0.00018356,2]
[372933411,1752813056427,-567.04,0.00018356,2]
[372933412,1752813056436,-460.0,0.00018356,2]
[372933413,1752813056446,-460.0,0.00018356,2]
[372933414,1752813056455,-460.0,0.00018356,2]
[372933415,1752813056466,-460.0,0.00018356,2]
[372933416,1752813056475,-460.0,0.00018356,2]
[372933417,1752813056485,-460.0,0.00018356,2]
[372933418,1752813056497,-460.0,0.00018356,2]
[372933419,1752813056507,-460.0,0.00018356,2]
[372933420,1752813056517,-777.35,0.00018356,2]
[372933421,1752813056526,-558.88,0.00018356,2]
[372933422,1752813056535,-460.0,0.00018356,2]
[372933423,1752813056545,-460.0,0.00018356,2]
[372933424,1752813056553,-460.0,0.00018356,2]
[372933425,1752813056563,-460.0,0.00018356,2]
[372933426,1752813056572,-460.0,0.00018356,2]
[372933427,1752813056582,-460.0,0.00018356,2]
[372933428,1752813056592,-460.0,0.00018356,2]
[372933429,1752813056602,-460.0,0.00018356,2]
[372933430,1752813056611,-460.0,0.00018356,2]
[372933431,1752813056620,-787.34,0.00018356,2]
[372933432,1752813056629,-460.0,0.00018356,2]
[372933433,1752813056639,-1702.85,0.00018356,2]
[372933434,1752813056648,-460.0,0.00018356,2]
[372933435,1752813056657,-460.0,0.00018356,2]
[372933436,1752813056666,-547.71,0.00018356,2]
[372933437,1752813056676,-555.77,0.00018356,2]
[372933438,1752813056685,-535.54,0.00018356,2]
[372933439,1752813056695,-470.00240161,0.00018356,2]
[372933440,1752813056705,-460.0,0.00018356,2]
[372933441,1752813056714,-460.0,0.00018356,2]
[372933442,1752813056724,-1010.83,0.00018356,2]
[372933443,1752813056733,-460.0,0.00018356,2]
[372933444,1752813056743,-460.0,0.00018356,2]
[372933445,1752813056752,-460.0,0.00018356,2]
[372933446,1752813056762,-560.37,0.00018356,2]
[372933447,1752813056771,-460.0,0.00018356,2]
[372933448,1752813056781,-460.0,0.00018356,2]
[372933449,1752813056790,-2738.5,0.00018356,2]
[372933450,1752813056799,-468.91586432,0.00018356,2]
[372933451,1752813056808,-460.0,0.00018356,2]
[372933452,1752813056818,-525.79,0.00018356,2]
[372933453,1752813056828,-460.0,0.00018356,2]
[372933454,1752813056837,-536.66,0.00018356,2]
[372933455,1752813056846,-460.0,0.00018356,2]
[372933456,1752813056856,-2535.91,0.00018356,2]
[372933457,1752813056865,-460.0,0.00018356,2]
[372933458,1752813056874,-3286.51,0.00018356,2]
[372933459,1752813056884,-513.61,0.00018356,2]
[372933460,1752813056893,-479.16,0.00018356,2]
[372933461,1752813056902,-460.0,0.00018356,2]
[372933462,1752813056912,-852.12,0.00018356,2]
[372933463,1752813056921,-1073.62,0.00018356,2]
[372933464,1752813056930,-460.0,0.00018356,2]
[372933465,1752813056940,-1477.28,0.00018356,2]
[372933466,1752813056949,-774.58,0.00018356,2]
[372933467,1752813056959,-638.51,0.00018356,2]
[372933468,1752813056968,-571.08,0.00018356,2]
[372933469,1752813056978,-1916.82,0.00018356,2]
[372933470,1752813056988,-581.75521201,0.00018356,2]
[372933471,1752813056998,-1136.96,0.00018356,2]
[372933472,1752813057007,-460.0,0.00018356,2]
[372933473,1752813057017,-646.05,0.00018356,2]
[372933474,1752813057027,-460.0,0.00018356,2]
[372933475,1752813057036,-460.0,0.00018356,2]
[372933476,1752813057046,-690.82,0.00018356,2]
[372933477,1752813057056,-460.0,0.00018356,2]
[372933478,1752813057065,-2756.34,0.00018356,2]
[372933479,1752813057074,-460.0,0.00018356,2]
[372933480,1752813057084,-1040.86,0.00018356,2]
[372933481,1752813057094,-460.0,0.00018356,2]
[372933482,1752813057103,-460.0,0.00018356,2]
[372933483,1752813057113,-460.0,0.00018356,2]
[372933484,1752813057123,-467.14,0.00018356,2]
[372933485,1752813057132,-460.0,0.00018356,2]
[372933486,1752813057142,-4760.88,0.00018356,2]
[372933487,1752813057151,-472.26,0.00018356,2]
[372933488,1752813057161,-460.0,0.00018356,2]
[372933489,1752813057170,-570.06,0.00018356,2]
[372933490,1752813057180,-4406.26,0.00018356,2]
[372933491,1752813057189,-508.35,0.00018356,2]
[372933492,1752813057200,-472.91,0.00018356,2]
[372933493,1752813057210,-460.0,0.00018356,2]
[372933494,1752813057219,-460.0,0.00018356,2]
[372933495,1752813057229,-856.08,0.00018356,2]
[372933496,1752813057238,-487.92,0.00018356,2]
[372933497,1752813057247,-460.0,0.00018356,2]
[372933498,1752813057257,-460.0,0.00018356,2]
[372933499,1752813057267,-1340.97,0.00018356,2]
[372933500,1752813057277,-582.41,0.00018356,2]
[372933501,1752813057287,-2433.29,0.00018356,2]
[372933502,1752813057296,-1705.16,0.00018356,2]
[372933503,1752813057306,-460.0,0.00018356,2]
[372933504,1752813057315,-460.0,0.00018356,2]
[372933505,1752813057325,-460.0,0.00018356,2]
[372933506,1752813057335,-1722.56,0.00018356,2]
[372933507,1752813057344,-460.0,0.00018356,2]
[372933508,1752813057354,-460.0,0.00018356,2]
[372933509,1752813057363,-2489.82,0.00018356,2]
[372933510,1752813057373,-505.66,0.00018356,2]
[372933511,1752813057383,-2945.34,0.00018356,2]
[372933512,1752813057392,-460.0,0.00018356,2]
[372933513,1752813057402,-460.0,0.00018356,2]
[372933514,1752813057412,-460.0,0.00018356,2]
[372933515,1752813057426,-633.48,0.00018356,2]
[372933516,1752813057435,-2000.0,0.00018416,2]
[372933517,1752813057447,-500.0,0.00018421,2]
[372933518,1752813057456,-500.0,0.00018421,2]
[372933519,1752813057466,-500.0,0.00018421,2]
[372933520,1752813057475,-460.0,0.0001863,2]
[372933521,1752813057485,-460.0,0.0001863,2]
[372933522,1752813057496,-460.0,0.0001863,2]
[372933523,1752813057506,-460.0,0.0001863,2]
[372933524,1752813057516,-513.5,0.0001863,2]
[372933525,1752813057526,-567.04,0.0001863,2]
[372933526,1752813057535,-460.0,0.0001863,2]
[372933527,1752813057614,-460.0,0.0001863,2]
[372933528,1752813057624,-460.0,0.0001863,2]
[372933529,1752813057633,-460.0,0.0001863,2]
[372933530,1752813057642,-460.0,0.0001863,2]
[372933531,1752813057652,-460.0,0.0001863,2]
[372933532,1752813057662,-460.0,0.0001863,2]
[372933533,1752813057671,-460.0,0.0001863,2]
[372933534,1752813057681,-777.35,0.0001863,2]
[372933535,1752813057691,-558.88,0.0001863,2]
[372933536,1752813057701,-460.0,0.0001863,2]
[372933537,1752813057711,-460.0,0.0001863,2]
[372933538,1752813057720,-460.0,0.0001863,2]
[372933539,1752813057730,-460.0,0.0001863,2]
[372933540,1752813057739,-460.0,0.0001863,2]
[372933541,1752813057749,-427.82975949,0.0001863,2]
[372933542,1752813057758,-301.99383105,0.0001863,2]
[372933543,1752813057768,-460.0,0.0001863,2]
[372933544,1752813057778,-175.90197964,0.0001863,2]
[372933545,1752813057787,-787.34,0.0001863,2]
[372933546,1752813057797,-460.0,0.0001863,2]
[372933547,1752813057807,-1702.85,0.0001863,2]
[372933548,1752813057817,-460.0,0.0001863,2]
[372933549,1752813057826,-547.71,0.0001863,2]
[372933550,1752813057835,-555.77,0.0001863,2]
[372933551,1752813057845,-535.54,0.0001863,2]
[372933552,1752813057855,-460.0,0.0001863,2]
[372933553,1752813057865,-460.0,0.0001863,2]
[372933554,1752813057876,-1010.83,0.0001863,2]
[372933555,1752813057885,-460.0,0.0001863,2]
[372933556,1752813057895,-460.0,0.0001863,2]
[372933557,1752813057904,-460.0,0.0001863,2]
[372933558,1752813057914,-560.37,0.0001863,2]
[372933559,1752813057923,-460.0,0.0001863,2]
[372933560,1752813057933,-460.0,0.0001863,2]
[372933561,1752813057942,-2738.5,0.0001863,2]
[372933562,1752813057953,-460.0,0.0001863,2]
[372933563,1752813057962,-525.79,0.0001863,2]
[372933564,1752813057972,-468.28256349,0.0001863,2]
[372933565,1752813057981,-536.66,0.0001863,2]
[372933566,1752813057991,-2535.91,0.0001863,2]
[372933567,1752813058000,-460.0,0.0001863,2]
[372933568,1752813058010,-3286.51,0.0001863,2]
[372933569,1752813058019,-513.61,0.0001863,2]
[372933570,1752813058028,-479.16,0.0001863,2]
[372933571,1752813058038,-460.0,0.0001863,2]
[372933572,1752813058047,-852.12,0.0001863,2]
[372933573,1752813058057,-1073.62,0.0001863,2]
[372933574,1752813058066,-460.0,0.0001863,2]
[372933575,1752813058075,-1477.28,0.0001863,2]
[372933576,1752813058084,-774.58,0.0001863,2]
[372933577,1752813058094,-638.51,0.0001863,2]
[372933578,1752813058103,-571.08,0.0001863,2]
[372933579,1752813058112,-1916.82,0.0001863,2]
[372933580,1752813058121,-1136.96,0.0001863,2]
[372933581,1752813058130,-460.0,0.0001863,2]
[372933582,1752813058140,-646.05,0.0001863,2]
[372933583,1752813058149,-460.0,0.0001863,2]
[372933584,1752813058158,-460.0,0.0001863,2]
[372933585,1752813058167,-690.82,0.0001863,2]
[372933586,1752813058177,-460.0,0.0001863,2]
[372933587,1752813058186,-460.0,0.0001863,2]
[372933588,1752813058196,-2756.34,0.0001863,2]
[372933589,1752813058206,-1040.86,0.0001863,2]
[372933590,1752813058216,-460.0,0.0001863,2]
[372933591,1752813058226,-460.0,0.0001863,2]
[372933592,1752813058237,-460.0,0.0001863,2]
[372933593,1752813058246,-467.14,0.0001863,2]
[372933594,1752813058256,-460.0,0.0001863,2]
[372933595,1752813058266,-4760.88,0.0001863,2]
[372933596,1752813058275,-472.26,0.0001863,2]
[372933597,1752813058286,-460.0,0.0001863,2]
[372933598,1752813058295,-570.06,0.0001863,2]
[372933599,1752813058305,-4406.26,0.0001863,2]
[372933600,1752813058314,-508.35,0.0001863,2]
[372933601,1752813058325,-472.91,0.0001863,2]
[372933602,1752813058334,-460.0,0.0001863,2]
[372933603,1752813058343,-460.0,0.0001863,2]
[372933604,1752813058353,-856.08,0.0001863,2]